[Event "Late-Titled-Tuesday-Blitz-October-03-2023"]
[Site "Chess.com"]
[Date "2023.10.03"]
[Round "7"]
[White "NovikovaGalina"]
[Black "familijatop71"]
[Result "1-0"]
[WhiteElo "2424"]
[BlackElo "2163"]
[TimeControl "180+1"]
[EndTime "15:12:00 PDT"]
[Termination "NovikovaGalina won on time"]

1. e4 {[%clk 0:02:57.1]} 1... c5 {[%clk 0:02:59.4]} 2. Nf3 {[%clk 0:02:51.9]}
2... d6 {[%clk 0:02:55.4]} 3. d4 {[%clk 0:02:50.1]} 3... cxd4 {[%clk 0:02:56.3]}
4. Nxd4 {[%clk 0:02:50.9]} 4... Nf6 {[%clk 0:02:55.6]} 5. Nc3 {[%clk 0:02:50.1]}
5... g6 {[%clk 0:02:55.1]} 6. Be3 {[%clk 0:02:44.9]} 6... Bg7 {[%clk 0:02:54.2]}
7. f3 {[%clk 0:02:42.1]} 7... O-O {[%clk 0:02:53.9]} 8. Qd2 {[%clk 0:02:34.7]}
8... Nc6 {[%clk 0:02:53.3]} 9. g4 {[%clk 0:02:28.6]} 9... Bd7 {[%clk 0:02:41.7]}
10. h4 {[%clk 0:02:26.8]} 10... Nxd4 {[%clk 0:02:31.3]} 11. Bxd4 {[%clk
0:02:27.7]} 11... b5 {[%clk 0:02:06.3]} 12. h5 {[%clk 0:02:26.5]} 12... b4
{[%clk 0:01:58.9]} 13. Ne2 {[%clk 0:02:26.9]} 13... Qc7 {[%clk 0:01:37.8]} 14.
hxg6 {[%clk 0:02:26.7]} 14... fxg6 {[%clk 0:01:36.2]} 15. O-O-O {[%clk
0:02:27.6]} 15... Be6 {[%clk 0:01:24.5]} 16. Kb1 {[%clk 0:02:27.1]} 16... a5
{[%clk 0:01:18]} 17. Nc1 {[%clk 0:02:27]} 17... a4 {[%clk 0:01:16.5]} 18. Qxb4
{[%clk 0:02:25.7]} 18... Rfb8 {[%clk 0:00:52.1]} 19. Qc3 {[%clk 0:02:25.6]}
19... Qb7 {[%clk 0:00:47.4]} 20. Bc4 {[%clk 0:02:24.9]} 20... d5 {[%clk
0:00:30.5]} 21. exd5 {[%clk 0:02:20.3]} 21... Nxd5 {[%clk 0:00:28.5]} 22. Bxd5
{[%clk 0:02:20.7]} 22... Bxd4 {[%clk 0:00:15.8]} 23. Qxd4 {[%clk 0:02:21.6]}
23... Bxd5 {[%clk 0:00:04.7]} 24. Qxd5+ {[%clk 0:02:22.5]} 24... Kg7 {[%clk
0:00:03.7]} 25. Qxb7 {[%clk 0:02:06.9]} 25... Rxb7 {[%clk 0:00:04.6]} 26. Nd3
{[%clk 0:02:05.8]} 26... Rab8 {[%clk 0:00:04.9]} 27. Rhe1 {[%clk 0:02:04.2]}
27... Kf7 {[%clk 0:00:04]} 28. b3 {[%clk 0:02:04.5]} 28... a3 {[%clk 0:00:02.6]}
29. Re2 {[%clk 0:02:02.2]} 1-0

[Event "Late-Titled-Tuesday-Blitz-October-03-2023"]
[Site "Chess.com"]
[Date "2023.10.03"]
[Round "7"]
[White "louis198"]
[Black "sofaceindisguise"]
[Result "1-0"]
[WhiteElo "2640"]
[BlackElo "2808"]
[TimeControl "180+1"]
[EndTime "15:12:05 PDT"]
[Termination "louis198 won by resignation"]

1. d4 {[%clk 0:03:00.2]} 1... Nf6 {[%clk 0:02:53.8]} 2. Bf4 {[%clk 0:03:00.6]}
2... g6 {[%clk 0:02:51.1]} 3. e3 {[%clk 0:03:00.8]} 3... d6 {[%clk 0:02:51.3]}
4. h3 {[%clk 0:03:01]} 4... c5 {[%clk 0:02:49.8]} 5. c3 {[%clk 0:03:01.1]} 5...
Qb6 {[%clk 0:02:49.3]} 6. Qc1 {[%clk 0:03:00.9]} 6... Bg7 {[%clk 0:02:48.1]} 7.
Nd2 {[%clk 0:03:00.7]} 7... O-O {[%clk 0:02:48.6]} 8. Bc4 {[%clk 0:03:00.5]}
8... Nc6 {[%clk 0:02:47.6]} 9. Ngf3 {[%clk 0:03:00.1]} 9... cxd4 {[%clk
0:02:45.6]} 10. exd4 {[%clk 0:03:00.6]} 10... e5 {[%clk 0:02:45.8]} 11. dxe5
{[%clk 0:03:01]} 11... dxe5 {[%clk 0:02:46.2]} 12. Be3 {[%clk 0:03:01.7]} 12...
Qc7 {[%clk 0:02:46]} 13. O-O {[%clk 0:03:01.1]} 13... Bf5 {[%clk 0:02:42.4]} 14.
Rd1 {[%clk 0:03:00.7]} 14... Rad8 {[%clk 0:02:42.4]} 15. Nf1 {[%clk 0:03:00.5]}
15... e4 {[%clk 0:02:17.2]} 16. N3h2 {[%clk 0:02:50.6]} 16... Ne5 {[%clk
0:02:12.2]} 17. Bb3 {[%clk 0:02:48.1]} 17... Nd3 {[%clk 0:02:10.4]} 18. Qc2
{[%clk 0:02:48.7]} 18... Nd5 {[%clk 0:02:06.6]} 19. Bxd5 {[%clk 0:02:45.7]}
19... Rxd5 {[%clk 0:02:06.3]} 20. Ng3 {[%clk 0:02:46.6]} 20... Rfd8 {[%clk
0:01:56.5]} 21. Nhf1 {[%clk 0:02:44.9]} 21... h5 {[%clk 0:01:52.7]} 22. Bg5
{[%clk 0:02:26.2]} 22... R8d7 {[%clk 0:01:49]} 23. Ne3 {[%clk 0:02:26.3]} 23...
Rb5 {[%clk 0:01:46.3]} 24. Nexf5 {[%clk 0:02:18.3]} 24... Rxb2 {[%clk
0:01:45.7]} 25. Qa4 {[%clk 0:02:05.3]} 25... Rxf2 {[%clk 0:01:27.2]} 26. Rxd3
{[%clk 0:02:00.7]} 26... exd3 {[%clk 0:01:21.1]} 27. Kxf2 {[%clk 0:02:01.1]}
27... gxf5 {[%clk 0:01:15.6]} 28. Nxf5 {[%clk 0:01:46.7]} 28... Qc5+ {[%clk
0:00:55.3]} 29. Ne3 {[%clk 0:01:36.5]} 29... Qxg5 {[%clk 0:00:45.3]} 30. Qxd7
{[%clk 0:01:35.6]} 30... Qf4+ {[%clk 0:00:45.9]} 31. Kg1 {[%clk 0:01:34.9]}
31... Qxe3+ {[%clk 0:00:46.5]} 32. Kh1 {[%clk 0:01:35.5]} 32... Bxc3 {[%clk
0:00:45.3]} 33. Qc8+ {[%clk 0:01:33.8]} 1-0

[Event "Late-Titled-Tuesday-Blitz-October-03-2023"]
[Site "Chess.com"]
[Date "2023.10.03"]
[Round "7"]
[White "Defenstrator"]
[Black "YellowJacek"]
[Result "0-1"]
[WhiteElo "2422"]
[BlackElo "2305"]
[TimeControl "180+1"]
[EndTime "15:12:17 PDT"]
[Termination "YellowJacek won on time"]

1. Nh3 {[%clk 0:02:58.6]} 1... d5 {[%clk 0:02:57.5]} 2. g3 {[%clk 0:02:58.2]}
2... e5 {[%clk 0:02:57.7]} 3. f4 {[%clk 0:02:58.4]} 3... Bxh3 {[%clk 0:02:53.3]}
4. Bxh3 {[%clk 0:02:58.2]} 4... exf4 {[%clk 0:02:54.2]} 5. O-O {[%clk
0:02:57.8]} 5... fxg3 {[%clk 0:02:53.5]} 6. e4 {[%clk 0:02:58.2]} 6... gxh2+
{[%clk 0:02:52.7]} 7. Kh1 {[%clk 0:02:58.3]} 7... dxe4 {[%clk 0:02:51.4]} 8. Qh5
{[%clk 0:02:53.9]} 8... Nf6 {[%clk 0:02:46.2]} 9. Qb5+ {[%clk 0:02:52.7]} 9...
Nbd7 {[%clk 0:02:40.6]} 10. Qxb7 {[%clk 0:02:52.8]} 10... Be7 {[%clk 0:02:28.7]}
11. Nc3 {[%clk 0:02:45.8]} 11... O-O {[%clk 0:02:26.7]} 12. Nxe4 {[%clk
0:02:44.6]} 12... Nxe4 {[%clk 0:02:17.8]} 13. Qxe4 {[%clk 0:02:44.4]} 13... Nf6
{[%clk 0:02:18.2]} 14. Qf3 {[%clk 0:02:36.8]} 14... Rb8 {[%clk 0:02:13.9]} 15.
b3 {[%clk 0:02:26.8]} 15... Rb4 {[%clk 0:02:08.1]} 16. Bb2 {[%clk 0:02:14.3]}
16... Rh4 {[%clk 0:01:53.8]} 17. Rae1 {[%clk 0:02:05.5]} 17... Qd6 {[%clk
0:01:42.5]} 18. Be5 {[%clk 0:01:34.5]} 18... Qxd2 {[%clk 0:01:39.4]} 19. Qg3
{[%clk 0:01:15.9]} 19... Nh5 {[%clk 0:01:25.6]} 20. Qf3 {[%clk 0:01:02.6]} 20...
Bd6 {[%clk 0:01:18.1]} 0-1

[Event "Late-Titled-Tuesday-Blitz-October-03-2023"]
[Site "Chess.com"]
[Date "2023.10.03"]
[Round "7"]
[White "The_Straightforward_Rook"]
[Black "Eloist"]
[Result "1-0"]
[WhiteElo "2562"]
[BlackElo "2438"]
[TimeControl "180+1"]
[EndTime "15:12:34 PDT"]
[Termination "The_Straightforward_Rook won on time"]

1. d4 {[%clk 0:03:00.9]} 1... e6 {[%clk 0:02:57.7]} 2. c4 {[%clk 0:03:00]} 2...
Nf6 {[%clk 0:02:57.7]} 3. Nf3 {[%clk 0:02:59.8]} 3... b6 {[%clk 0:02:57.5]} 4.
g3 {[%clk 0:03:00]} 4... Bb7 {[%clk 0:02:57.7]} 5. Bg2 {[%clk 0:03:00]} 5... Be7
{[%clk 0:02:58.1]} 6. d5 {[%clk 0:03:00.4]} 6... exd5 {[%clk 0:02:57.6]} 7. Nd4
{[%clk 0:03:00]} 7... Bc6 {[%clk 0:02:56.4]} 8. Nf5 {[%clk 0:02:46.1]} 8... dxc4
{[%clk 0:01:59.3]} 9. Nxg7+ {[%clk 0:02:38.9]} 9... Kf8 {[%clk 0:01:59.1]} 10.
Bh6 {[%clk 0:02:25.5]} 10... Kg8 {[%clk 0:01:56.6]} 11. O-O {[%clk 0:02:24.7]}
11... Ng4 {[%clk 0:01:46.2]} 12. Nf5 {[%clk 0:02:16.9]} 12... Nxh6 {[%clk
0:01:40.9]} 13. Nxh6+ {[%clk 0:02:16.5]} 13... Kf8 {[%clk 0:01:36.6]} 14. Qd4
{[%clk 0:02:13.6]} 14... Bf6 {[%clk 0:01:33.1]} 15. Qxc4 {[%clk 0:02:13.5]}
15... d5 {[%clk 0:01:14.2]} 16. Qf4 {[%clk 0:02:06.7]} 16... Qd6 {[%clk
0:01:03.9]} 17. Qxd6+ {[%clk 0:02:01.3]} 17... cxd6 {[%clk 0:01:03.1]} 18. Nc3
{[%clk 0:02:01.2]} 18... d4 {[%clk 0:00:58.6]} 19. Ne4 {[%clk 0:01:57.8]} 19...
Be5 {[%clk 0:00:41.7]} 20. f4 {[%clk 0:01:57.1]} 20... Bg7 {[%clk 0:00:40.3]}
21. Nf5 {[%clk 0:01:57.1]} 21... Na6 {[%clk 0:00:35.9]} 22. Nexd6 {[%clk
0:01:46.2]} 22... Bxg2 {[%clk 0:00:34.6]} 23. Kxg2 {[%clk 0:01:47.1]} 23... Nc5
{[%clk 0:00:22.3]} 24. Rac1 {[%clk 0:01:44.8]} 24... a5 {[%clk 0:00:20]} 25.
Rfd1 {[%clk 0:01:41.5]} 25... Rd8 {[%clk 0:00:16.1]} 26. Nxg7 {[%clk 0:01:35.7]}
26... Kxg7 {[%clk 0:00:15.9]} 27. Rxd4 {[%clk 0:01:34]} 27... Nb7 {[%clk
0:00:07.8]} 28. Rcd1 {[%clk 0:01:30.3]} 28... Nxd6 {[%clk 0:00:07.2]} 29. Rxd6
{[%clk 0:01:31.2]} 29... Rxd6 {[%clk 0:00:06.5]} 30. Rxd6 {[%clk 0:01:32.1]}
30... Re8 {[%clk 0:00:02.9]} 31. Kf3 {[%clk 0:01:31.4]} 31... b5 {[%clk
0:00:01.4]} 32. e4 {[%clk 0:01:28]} 1-0

[Event "Late-Titled-Tuesday-Blitz-October-03-2023"]
[Site "Chess.com"]
[Date "2023.10.03"]
[Round "7"]
[White "Joel1285"]
[Black "ritanovikova"]
[Result "0-1"]
[WhiteElo "1899"]
[BlackElo "2180"]
[TimeControl "180+1"]
[EndTime "15:12:39 PDT"]
[Termination "ritanovikova won on time"]

1. d4 {[%clk 0:03:00.9]} 1... e5 {[%clk 0:02:59.9]} 2. dxe5 {[%clk 0:03:00.6]}
2... Nc6 {[%clk 0:03:00]} 3. Nf3 {[%clk 0:03:00.3]} 3... Qe7 {[%clk 0:03:00.3]}
4. Bf4 {[%clk 0:03:00.3]} 4... Qb4+ {[%clk 0:03:00.5]} 5. Bd2 {[%clk 0:03:00.6]}
5... Qxb2 {[%clk 0:03:01]} 6. Nc3 {[%clk 0:03:01.2]} 6... Nb4 {[%clk 0:03:00.1]}
7. Nd4 {[%clk 0:02:58.8]} 7... c5 {[%clk 0:02:54.5]} 8. Rb1 {[%clk 0:02:58.4]}
8... Qa3 {[%clk 0:02:50.1]} 9. Ndb5 {[%clk 0:02:45.3]} 9... Qa5 {[%clk
0:02:49.3]} 10. a3 {[%clk 0:02:45.1]} 10... a6 {[%clk 0:02:31.1]} 11. axb4
{[%clk 0:02:44.4]} 11... cxb4 {[%clk 0:02:31.6]} 12. Ra1 {[%clk 0:01:45.4]}
12... Qd8 {[%clk 0:02:20.6]} 13. Nd5 {[%clk 0:01:36.7]} 13... axb5 {[%clk
0:02:17]} 14. Rxa8 {[%clk 0:01:37.6]} 14... Ne7 {[%clk 0:02:15.3]} 15. Nxb4
{[%clk 0:01:19.6]} 15... Nc6 {[%clk 0:02:07.3]} 16. Nxc6 {[%clk 0:00:58.5]}
16... bxc6 {[%clk 0:02:08.2]} 17. e3 {[%clk 0:00:50.5]} 17... Bc5 {[%clk
0:02:05.6]} 18. Bd3 {[%clk 0:00:47.4]} 18... O-O {[%clk 0:02:04.9]} 19. O-O
{[%clk 0:00:46.9]} 19... Qc7 {[%clk 0:02:02.1]} 20. Qa1 {[%clk 0:00:39.1]} 20...
d6 {[%clk 0:01:59.3]} 21. exd6 {[%clk 0:00:34.7]} 21... Bxd6 {[%clk 0:02:00.2]}
22. g3 {[%clk 0:00:34.2]} 22... h5 {[%clk 0:01:58.1]} 23. Bc3 {[%clk 0:00:19.1]}
23... f6 {[%clk 0:01:54.6]} 24. Rd1 {[%clk 0:00:16.3]} 24... b4 {[%clk 0:01:54]}
25. Be1 {[%clk 0:00:07.7]} 25... h4 {[%clk 0:01:52.3]} 26. Bf1 {[%clk
0:00:06.6]} 26... Be5 {[%clk 0:01:46.9]} 27. Qa5 {[%clk 0:00:04.8]} 27... Qb7
{[%clk 0:01:38.8]} 28. Ra7 {[%clk 0:00:03.8]} 28... Qb8 {[%clk 0:01:36.9]} 29.
Rd8 {[%clk 0:00:02.7]} 29... hxg3 {[%clk 0:01:29.7]} 30. Rxf8+ {[%clk
0:00:02.3]} 30... Kxf8 {[%clk 0:01:30.1]} 31. Ra8 {[%clk 0:00:01.9]} 31... Qb7
{[%clk 0:01:28.8]} 0-1

[Event "Late-Titled-Tuesday-Blitz-October-03-2023"]
[Site "Chess.com"]
[Date "2023.10.03"]
[Round "7"]
[White "KorolDimitriy75"]
[Black "zverr1"]
[Result "1-0"]
[WhiteElo "2373"]
[BlackElo "2504"]
[TimeControl "180+1"]
[EndTime "15:12:52 PDT"]
[Termination "KorolDimitriy75 won by checkmate"]

1. d4 {[%clk 0:03:00.9]} 1... Nf6 {[%clk 0:02:59.4]} 2. c4 {[%clk 0:03:01]} 2...
g6 {[%clk 0:02:59.7]} 3. Nc3 {[%clk 0:03:01.4]} 3... d5 {[%clk 0:02:59.9]} 4.
cxd5 {[%clk 0:03:01.3]} 4... Nxd5 {[%clk 0:03:00.8]} 5. e4 {[%clk 0:03:01.7]}
5... Nxc3 {[%clk 0:03:01]} 6. bxc3 {[%clk 0:03:02.6]} 6... c5 {[%clk 0:03:01.2]}
7. Nf3 {[%clk 0:03:03]} 7... Bg7 {[%clk 0:03:01.7]} 8. Rb1 {[%clk 0:03:03.2]}
8... O-O {[%clk 0:03:01.2]} 9. Be2 {[%clk 0:03:03.4]} 9... Nc6 {[%clk
0:02:58.1]} 10. d5 {[%clk 0:03:03.4]} 10... Bxc3+ {[%clk 0:02:55.5]} 11. Bd2
{[%clk 0:03:02.8]} 11... Bxd2+ {[%clk 0:02:55.5]} 12. Qxd2 {[%clk 0:03:03.7]}
12... Nb8 {[%clk 0:02:37.5]} 13. h4 {[%clk 0:02:56.3]} 13... h5 {[%clk 0:02:25]}
14. Qh6 {[%clk 0:02:53]} 14... Qa5+ {[%clk 0:02:10.3]} 15. Kf1 {[%clk
0:02:37.5]} 15... Qxa2 {[%clk 0:02:07.4]} 16. Re1 {[%clk 0:02:13.6]} 16... Qb2
{[%clk 0:02:05.2]} 17. e5 {[%clk 0:02:10]} 17... Bg4 {[%clk 0:01:43.6]} 18. Ng5
{[%clk 0:01:56.6]} 18... Bxe2+ {[%clk 0:01:44.5]} 19. Rxe2 {[%clk 0:01:56.5]}
19... Qc1+ {[%clk 0:01:14.5]} 20. Re1 {[%clk 0:01:54.3]} 20... Qxg5 {[%clk
0:01:14.8]} 21. hxg5 {[%clk 0:01:27.7]} 21... a5 {[%clk 0:01:13.9]} 22. g4
{[%clk 0:01:22.1]} 22... Ra6 {[%clk 0:00:24.4]} 23. e6 {[%clk 0:00:53.7]} 23...
a4 {[%clk 0:00:08.6]} 24. gxh5 {[%clk 0:00:52.6]} 24... a3 {[%clk 0:00:07.3]}
25. hxg6 {[%clk 0:00:51.9]} 25... a2 {[%clk 0:00:05.5]} 26. Qh7# {[%clk
0:00:48.9]} 1-0

[Event "Late-Titled-Tuesday-Blitz-October-03-2023"]
[Site "Chess.com"]
[Date "2023.10.03"]
[Round "7"]
[White "valemava"]
[Black "kingofthenil"]
[Result "1-0"]
[WhiteElo "2326"]
[BlackElo "2756"]
[TimeControl "180+1"]
[EndTime "15:13:00 PDT"]
[Termination "valemava won by checkmate"]

1. Nf3 {[%clk 0:03:00.9]} 1... Nf6 {[%clk 0:02:58.9]} 2. c4 {[%clk 0:03:00.4]}
2... c6 {[%clk 0:02:54.8]} 3. b3 {[%clk 0:02:59.1]} 3... d5 {[%clk 0:02:55.7]}
4. Bb2 {[%clk 0:02:59.3]} 4... Bg4 {[%clk 0:02:54.9]} 5. g3 {[%clk 0:02:58.6]}
5... Bxf3 {[%clk 0:02:54.8]} 6. exf3 {[%clk 0:02:59.3]} 6... g6 {[%clk
0:02:54.3]} 7. Bg2 {[%clk 0:02:59.2]} 7... Bg7 {[%clk 0:02:54.4]} 8. O-O {[%clk
0:02:59.3]} 8... O-O {[%clk 0:02:54.9]} 9. d3 {[%clk 0:02:58.9]} 9... Ne8 {[%clk
0:02:54.2]} 10. Qc1 {[%clk 0:02:57.5]} 10... Nd7 {[%clk 0:02:51.6]} 11. Nc3
{[%clk 0:02:56]} 11... e6 {[%clk 0:02:51.5]} 12. f4 {[%clk 0:02:55.9]} 12... Nc5
{[%clk 0:02:51.1]} 13. Rd1 {[%clk 0:02:54.1]} 13... Nd6 {[%clk 0:02:50.6]} 14.
b4 {[%clk 0:02:49.9]} 14... Nd7 {[%clk 0:02:50.1]} 15. c5 {[%clk 0:02:49]} 15...
Nf5 {[%clk 0:02:50]} 16. Ne2 {[%clk 0:02:46.3]} 16... Bxb2 {[%clk 0:02:49.2]}
17. Qxb2 {[%clk 0:02:45.8]} 17... Qf6 {[%clk 0:02:50.1]} 18. d4 {[%clk
0:02:45.4]} 18... h5 {[%clk 0:02:50.1]} 19. h4 {[%clk 0:02:44.2]} 19... b6
{[%clk 0:02:48]} 20. b5 {[%clk 0:02:33.9]} 20... Nxc5 {[%clk 0:02:44.6]} 21.
bxc6 {[%clk 0:02:32.2]} 21... Rfc8 {[%clk 0:02:41.7]} 22. Rd2 {[%clk 0:02:26.9]}
22... Ne4 {[%clk 0:02:40.4]} 23. Rc2 {[%clk 0:02:19.2]} 23... Nfd6 {[%clk
0:02:36.8]} 24. Rac1 {[%clk 0:02:15.7]} 24... Rc7 {[%clk 0:02:34.9]} 25. f3
{[%clk 0:01:59]} 25... Nxg3 {[%clk 0:02:34.9]} 26. Nxg3 {[%clk 0:01:57.9]} 26...
Qxf4 {[%clk 0:02:35.8]} 27. Ne2 {[%clk 0:01:53.4]} 27... Qxh4 {[%clk 0:02:32.7]}
28. Qb4 {[%clk 0:01:49.5]} 28... Nc4 {[%clk 0:02:28.8]} 29. Rxc4 {[%clk
0:01:44.8]} 29... dxc4 {[%clk 0:02:29.7]} 30. Qxc4 {[%clk 0:01:44.3]} 30... Rd8
{[%clk 0:01:56.4]} 31. f4 {[%clk 0:01:43.8]} 31... Qg4 {[%clk 0:01:53.4]} 32.
Kf2 {[%clk 0:01:40.3]} 32... h4 {[%clk 0:01:48.4]} 33. Bf3 {[%clk 0:01:34.7]}
33... Qf5 {[%clk 0:01:46.1]} 34. Qc2 {[%clk 0:01:30.1]} 34... Qa5 {[%clk
0:01:35.1]} 35. Qe4 {[%clk 0:01:27.2]} 35... Rd5 {[%clk 0:01:25.1]} 36. Rh1
{[%clk 0:01:24.8]} 36... Qxa2 {[%clk 0:01:22.6]} 37. Rxh4 {[%clk 0:01:24.1]}
37... Rxc6 {[%clk 0:01:22.6]} 38. f5 {[%clk 0:01:21.6]} 38... gxf5 {[%clk
0:00:28.5]} 39. Qf4 {[%clk 0:01:20.7]} 39... Kf8 {[%clk 0:00:25.6]} 40. Bxd5
{[%clk 0:01:19.2]} 40... Qxd5 {[%clk 0:00:24.9]} 41. Rh8+ {[%clk 0:01:10.4]}
41... Ke7 {[%clk 0:00:25]} 42. Qg5+ {[%clk 0:01:10]} 42... f6 {[%clk 0:00:23.1]}
43. Qg7+ {[%clk 0:01:09.3]} 43... Kd6 {[%clk 0:00:24]} 44. Rd8# {[%clk 0:01:08]}
1-0

[Event "Late-Titled-Tuesday-Blitz-October-03-2023"]
[Site "Chess.com"]
[Date "2023.10.03"]
[Round "7"]
[White "bazar-wokzal"]
[Black "chessmoo"]
[Result "1/2-1/2"]
[WhiteElo "2576"]
[BlackElo "2466"]
[TimeControl "180+1"]
[EndTime "15:13:04 PDT"]
[Termination "Game drawn by repetition"]

1. e4 {[%clk 0:03:00.9]} 1... c5 {[%clk 0:03:00.2]} 2. c3 {[%clk 0:03:00.5]}
2... Nf6 {[%clk 0:03:00.2]} 3. e5 {[%clk 0:03:00.1]} 3... Nd5 {[%clk 0:03:00.3]}
4. d4 {[%clk 0:02:59.8]} 4... cxd4 {[%clk 0:03:01.2]} 5. cxd4 {[%clk 0:02:59.8]}
5... e6 {[%clk 0:03:01.8]} 6. Nc3 {[%clk 0:02:59.6]} 6... Nxc3 {[%clk
0:03:02.4]} 7. bxc3 {[%clk 0:02:59.8]} 7... Qc7 {[%clk 0:03:03.3]} 8. Bd2 {[%clk
0:02:59.6]} 8... d6 {[%clk 0:03:01.7]} 9. f4 {[%clk 0:02:59.7]} 9... Nd7 {[%clk
0:03:02.1]} 10. Nf3 {[%clk 0:02:59.2]} 10... Be7 {[%clk 0:03:01.9]} 11. Bd3
{[%clk 0:02:58.9]} 11... b6 {[%clk 0:03:02]} 12. Qe2 {[%clk 0:02:56.2]} 12...
Bb7 {[%clk 0:03:01.9]} 13. O-O {[%clk 0:02:52.4]} 13... O-O {[%clk 0:03:00.6]}
14. Rf2 {[%clk 0:02:34.1]} 14... Rfd8 {[%clk 0:02:44.1]} 15. Raf1 {[%clk
0:02:32.8]} 15... g6 {[%clk 0:02:29]} 16. g4 {[%clk 0:02:25.9]} 16... Rac8
{[%clk 0:02:08.4]} 17. h4 {[%clk 0:01:58.3]} 17... Bf8 {[%clk 0:01:41.5]} 18. h5
{[%clk 0:01:57.3]} 18... Bg7 {[%clk 0:01:41.8]} 19. hxg6 {[%clk 0:01:56.8]}
19... hxg6 {[%clk 0:01:42.2]} 20. Ng5 {[%clk 0:01:50.8]} 20... Qc6 {[%clk
0:01:35.9]} 21. Be4 {[%clk 0:01:49.3]} 21... Qc7 {[%clk 0:01:34.1]} 22. Rf3
{[%clk 0:01:37.1]} 22... Bxe4 {[%clk 0:01:33.6]} 23. Nxe4 {[%clk 0:01:31.7]}
23... dxe5 {[%clk 0:01:23.7]} 24. fxe5 {[%clk 0:01:31.7]} 24... Nxe5 {[%clk
0:01:24]} 25. dxe5 {[%clk 0:01:30.5]} 25... Qxe5 {[%clk 0:01:23.7]} 26. Rxf7
{[%clk 0:01:20.3]} 26... Rxd2 {[%clk 0:01:23.3]} 27. Qxd2 {[%clk 0:01:19]} 27...
Qxe4 {[%clk 0:01:21.6]} 28. Rxg7+ {[%clk 0:01:10.2]} 28... Kxg7 {[%clk
0:01:21.9]} 29. Qd7+ {[%clk 0:01:09.9]} 29... Kh6 {[%clk 0:01:21.9]} 30. g5+
{[%clk 0:01:00.8]} 30... Kxg5 {[%clk 0:01:06.1]} 31. Qxc8 {[%clk 0:01:00.8]}
31... Qe3+ {[%clk 0:01:03.7]} 32. Rf2 {[%clk 0:00:45.4]} 32... Qe1+ {[%clk
0:01:02.7]} 33. Kg2 {[%clk 0:00:45.4]} 33... Qe4+ {[%clk 0:01:02.7]} 34. Kh2
{[%clk 0:00:44.2]} 34... Qe5+ {[%clk 0:00:59.2]} 35. Kh1 {[%clk 0:00:36.9]}
35... Qe1+ {[%clk 0:00:57.2]} 36. Kg2 {[%clk 0:00:37.1]} 36... Qe4+ {[%clk
0:00:57.3]} 37. Rf3 {[%clk 0:00:28.3]} 37... Qe2+ {[%clk 0:00:55.5]} 38. Kg3
{[%clk 0:00:26.7]} 38... Qe1+ {[%clk 0:00:51.2]} 39. Rf2 {[%clk 0:00:24.5]}
39... Qe3+ {[%clk 0:00:49.4]} 40. Kg2 {[%clk 0:00:24.9]} 40... Qe4+ {[%clk
0:00:49.6]} 1/2-1/2

[Event "Late-Titled-Tuesday-Blitz-October-03-2023"]
[Site "Chess.com"]
[Date "2023.10.03"]
[Round "7"]
[White "biostatistician"]
[Black "dretch"]
[Result "0-1"]
[WhiteElo "2633"]
[BlackElo "2844"]
[TimeControl "180+1"]
[EndTime "15:13:08 PDT"]
[Termination "dretch won by resignation"]

1. d4 {[%clk 0:03:00.6]} 1... d5 {[%clk 0:02:59.8]} 2. Nf3 {[%clk 0:03:00.3]}
2... Nf6 {[%clk 0:03:00.1]} 3. c4 {[%clk 0:03:00.7]} 3... c6 {[%clk 0:03:00.4]}
4. cxd5 {[%clk 0:03:00.9]} 4... cxd5 {[%clk 0:03:00.8]} 5. Nc3 {[%clk
0:03:01.8]} 5... Nc6 {[%clk 0:03:01.4]} 6. Bf4 {[%clk 0:03:02.2]} 6... Nh5
{[%clk 0:03:01.2]} 7. Bd2 {[%clk 0:03:01.5]} 7... e6 {[%clk 0:03:00.7]} 8. e3
{[%clk 0:03:01.4]} 8... Bd6 {[%clk 0:03:00.9]} 9. Rc1 {[%clk 0:02:58.2]} 9...
O-O {[%clk 0:02:54.6]} 10. Ne5 {[%clk 0:02:55]} 10... g6 {[%clk 0:02:49]} 11.
Be2 {[%clk 0:02:49.2]} 11... Ng7 {[%clk 0:02:33.3]} 12. f4 {[%clk 0:02:46.9]}
12... Ne7 {[%clk 0:02:27.5]} 13. O-O {[%clk 0:02:45.9]} 13... f6 {[%clk
0:02:27.5]} 14. Nd3 {[%clk 0:02:41.6]} 14... Ngf5 {[%clk 0:02:17.9]} 15. g4
{[%clk 0:02:37.4]} 15... Ng7 {[%clk 0:02:18]} 16. Nb5 {[%clk 0:02:36.1]} 16...
Bb8 {[%clk 0:02:15.5]} 17. Bb4 {[%clk 0:02:21.6]} 17... a6 {[%clk 0:02:07.1]}
18. Rxc8 {[%clk 0:02:16.2]} 18... Nxc8 {[%clk 0:01:54.4]} 19. Bxf8 {[%clk
0:02:17.1]} 19... Qxf8 {[%clk 0:01:46.6]} 20. Nc3 {[%clk 0:02:15.3]} 20... Nd6
{[%clk 0:01:45.5]} 21. Bf3 {[%clk 0:02:07.3]} 21... Ba7 {[%clk 0:01:29.7]} 22.
Qb3 {[%clk 0:02:03.5]} 22... Nc4 {[%clk 0:01:23.8]} 23. Qxb7 {[%clk 0:01:25.1]}
23... Nxe3 {[%clk 0:01:21.9]} 24. Re1 {[%clk 0:01:24.5]} 24... Bxd4 {[%clk
0:01:13.7]} 25. Kh1 {[%clk 0:01:24.2]} 25... Qc8 {[%clk 0:01:03.1]} 26. Qb4
{[%clk 0:00:20]} 26... Nc2 {[%clk 0:01:01.6]} 27. Nxd5 {[%clk 0:00:09]} 27...
Nxb4 {[%clk 0:00:58.5]} 28. Ne7+ {[%clk 0:00:08.7]} 28... Kf8 {[%clk 0:00:55.1]}
29. Nxc8 {[%clk 0:00:09.6]} 29... Nxd3 {[%clk 0:00:53.8]} 30. Bxa8 {[%clk
0:00:09.3]} 30... Nxe1 {[%clk 0:00:53.3]} 31. b4 {[%clk 0:00:08.3]} 31... Nc2
{[%clk 0:00:50.7]} 0-1